bitfinex/quotes_ETHUSD_20220213
["timestamp","ask_amount","ask_price","bid_price","bid_amount"]
[1644719222311,0.02023196,2913.2,2912.5,0.85821]
[1644719222509,0.02023196,2913.2,2913.0,0.01011639]
[1644719223565,0.02023196,2913.2,2912.4,0.00261279]
[1644719223760,0.1716,2913.1,2913.0,0.01011639]
[1644719223960,0.02023196,2913.2,2913.0,0.01011639]
[1644719224162,4.2,2913.1,2912.1,2.17681207]
[1644719224360,4.2,2913.1,2912.4,1.13816952]
[1644719224561,4.2,2913.1,2912.5,0.8582]
[1644719225163,0.02023196,2913.2,2912.5,0.8582]
[1644719226169,0.01011572,2913.0,2912.5,0.8582]
[1644719226913,0.01011572,2913.0,2912.3,0.7991183]
[1644719227107,0.02023196,2913.2,2912.3,1.089]
[1644719227306,0.01011585,2912.9,2912.3,1.09911808]
[1644719228107,0.01011585,2912.9,2912.5,0.85819]
[1644719228309,0.02023196,2913.2,2912.5,1.15819]
[1644719228510,0.01011606,2912.7,2912.5,1.15819]
[1644719228712,0.01011606,2912.7,2912.5,0.3]
[1644719229108,0.01011606,2912.7,2912.6,1.1448854]
[1644719229609,0.02023196,2913.2,2912.6,1.1448854]
[1644719229812,0.01011599,2912.8,2912.6,1.1448854]
[1644719230663,0.02023196,2913.2,2912.6,1.1448854]
[1644719230864,0.02023196,2913.2,2912.6,2.1448854]
[1644719231064,0.01011592,2912.8,2912.6,2.1448854]
[1644719231667,0.01011592,2912.8,2912.6,1.1448854]
[1644719231864,0.02023196,2913.2,2912.6,2.1448854]
[1644719232063,0.01011592,2912.8,2912.6,1.1448854]
[1644719232284,0.01011592,2912.8,2912.5,0.489]
[1644719232473,0.01011592,2912.8,2912.3,0.01011798]
[1644719233068,3.6716,2913.1,2911.9,0.25]
[1644719233270,1.46046611,2913.0,2911.4,0.69463732]
[1644719233468,1.46046611,2913.0,2912.3,0.01011766]
[1644719233469,0.01011612,2912.7,2912.3,0.01011766]
[1644719234021,0.01011612,2912.7,2912.4,0.17209129]
[1644719234207,0.01011612,2912.7,2912.5,0.489]
[1644719234406,3.02973196,2913.2,2912.5,0.489]
[1644719234609,3.02973196,2913.2,2912.7,1.14381448]
[1644719235209,0.02023196,2913.2,2912.7,1.14381448]
[1644719235609,0.02023196,2913.2,2912.8,0.489]
[1644719235809,0.01011559,2913.1,2912.8,0.489]
[1644719236614,0.01011559,2913.1,2912.8,0.66109129]
[1644719236809,0.02023196,2913.2,2912.8,1.51919129]
[1644719237014,0.01011559,2913.1,2912.8,0.66109129]
[1644719237212,0.01011559,2913.1,2912.8,1.66109129]
[1644719237413,0.01011559,2913.1,2912.8,0.489]
[1644719237610,0.01011559,2913.1,2912.8,1.489]
[1644719238060,0.02023196,2913.2,2912.8,1.489]
[1644719238261,0.01011559,2913.1,2912.8,1.489]
[1644719238462,0.01011559,2913.1,2912.8,1.0]
[1644719238861,0.01011559,2913.1,2912.7,0.3]
[1644719239061,0.01011559,2913.1,2912.3,2.22121851]
[1644719239062,0.02023196,2913.2,2912.3,1.5111]
[1644719239265,1.46023209,2913.1,2912.3,1.8111]
[1644719239462,1.47034768,2913.1,2912.3,1.82121851]
[1644719239662,0.01011559,2913.1,2912.4,0.93037027]
[1644719240262,0.02023196,2913.2,2912.4,0.93037027]
[1644719240764,0.01011585,2912.9,2912.4,0.93037027]
[1644719241608,0.02023196,2913.2,2912.4,0.93037027]
[1644719241815,0.01011599,2912.8,2912.4,0.93037027]
[1644719242816,0.02023196,2913.2,2912.4,0.93037027]
[1644719243014,0.01011606,2912.7,2912.4,0.93037027]
[1644719244016,0.02023196,2913.2,2912.4,0.93037027]
[1644719244215,0.01011612,2912.7,2912.4,1.10246156]
[1644719244419,0.01011612,2912.7,2912.4,1.27406156]
[1644719245661,0.00914744,2912.7,2912.4,1.27406156]
[1644719246261,0.02023196,2913.2,2912.4,1.27406156]
[1644719246461,1.46019305,2913.1,2912.4,1.10246156]
[1644719247462,1.46019305,2913.1,2912.4,2.26068156]
[1644719247670,1.46019305,2913.1,2912.4,2.56068156]
[1644719247868,0.00619198,2912.9,2912.5,1.0]
[1644719248264,0.00619198,2912.9,2912.5,1.3]
[1644719248465,0.00619198,2912.9,2912.5,4.43555045]
[1644719248666,0.02023196,2913.2,2912.5,4.43555045]
[1644719248869,0.02023196,2913.2,2912.9,0.87028827]
[1644719249112,0.02023196,2913.2,2912.9,1.17028827]
[1644719249315,0.02023196,2913.2,2912.9,1.47028827]
[1644719249818,1.46016151,2913.1,2912.9,1.47028827]
[1644719250011,1.46016151,2913.1,2912.9,0.87028827]
[1644719250811,0.03034741,2913.2,2912.8,0.00260693]
[1644719251012,1.46019097,2913.1,2912.6,0.789]
[1644719251313,1.47030649,2913.1,2912.7,0.3]
[1644719251531,0.01011552,2913.1,2912.7,0.3]
[1644719251711,1.46019343,2913.0,2912.7,0.3]
[1644719251913,0.01011552,2913.1,2912.9,1.18989847]
[1644719252320,0.02023196,2913.2,2912.9,1.18989847]
[1644719252514,1.47030309,2913.1,2912.9,1.18989847]
[1644719252758,0.01011552,2913.1,2912.9,1.18989847]
[1644719253164,0.01011552,2913.1,2912.8,0.00260693]
[1644719253364,0.01011552,2913.1,2912.7,0.3]
[1644719253567,0.02023196,2913.2,2912.7,0.3]
[1644719253766,1.47027628,2913.1,2912.7,0.3]
[1644719253964,0.01011559,2913.1,2912.7,0.3]
[1644719254366,0.01011559,2913.1,2912.8,0.90184394]
[1644719254566,0.01011559,2913.1,2912.8,1.20184394]
[1644719254766,0.02023196,2913.2,2912.8,1.20184394]
[1644719254970,1.47026798,2913.1,2912.8,1.20184394]
[1644719255167,0.01011559,2913.1,2912.8,1.20184394]
[1644719255967,0.02023196,2913.2,2912.8,1.20184394]
[1644719256174,0.01011559,2913.1,2912.8,1.20184394]
[1644719257112,0.02023196,2913.2,2912.8,1.20184394]
[1644719257315,0.01011559,2913.1,2912.8,1.20184394]
[1644719258117,0.01011559,2913.1,2912.8,4.3053514]
[1644719258321,0.02023196,2913.2,2912.9,1.489]
[1644719258520,0.02023196,2913.2,2913.0,3.52119784]
[1644719258723,0.02023196,2913.2,2913.0,10.23419784]
[1644719258724,0.01011559,2913.1,2913.0,10.23419784]
[1644719258919,0.01011559,2913.1,2913.0,10.72319784]
[1644719259317,0.01011559,2913.1,2913.0,10.89528913]
[1644719259518,0.02023196,2913.2,2913.0,10.89528913]
[1644719259726,0.03034741,2913.2,2913.1,3.53700707]
[1644719260028,0.03034741,2913.2,2913.1,4.19809836]
[1644719260665,0.02023196,2913.2,2913.1,4.19809836]
[1644719265720,0.02023196,2913.2,2913.1,4.02649836]
[1644719267116,0.01888617,2913.2,2913.1,4.02649836]
[1644719267335,0.01888617,2913.2,2913.1,0.66109129]
[1644719268780,0.01888617,2913.2,2912.9,1.0]
[1644719269379,0.02900162,2913.2,2912.9,1.0]
[1644719269780,0.02900162,2913.2,2912.9,1.3]
[1644719269980,0.02900162,2913.2,2912.9,1.6]
[1644719270385,0.01888617,2913.2,2912.9,1.6]
[1644719270581,0.02900162,2913.2,2912.9,1.6]
[1644719270982,0.02900162,2913.2,2912.9,1.3]
[1644719271181,0.02900162,2913.2,2913.0,0.3]
[1644719271381,0.02900162,2913.2,2912.9,1.6]
[1644719271614,0.01888617,2913.2,2912.9,1.6]
[1644719271812,0.02900155,2913.2,2912.9,1.6]
[1644719272820,0.01888617,2913.2,2912.9,1.6]
[1644719273022,0.02900162,2913.2,2912.9,1.6]
[1644719273421,0.02900162,2913.2,2913.0,0.489]
[1644719274025,3.49887642,2914.2,2913.0,0.489]
[1644719274026,0.1716,2914.2,2913.2,4.2]
[1644719274325,1.4598874,2914.1,2913.3,1.34676]
[1644719274521,1.4598874,2914.1,2913.3,1.69045129]
[1644719274720,1.4598874,2914.0,2913.3,1.99045129]
[1644719274926,3.5,2914.5,2913.6,1.11588954]
[1644719275122,1.45981887,2914.4,2913.7,0.489]
[1644719275361,0.01011464,2913.8,2913.7,0.789]
[1644719276461,4.6061,2914.6,2913.7,2.50464]
[1644719276662,0.01011451,2913.9,2913.7,2.50464]
[1644719276962,0.01011451,2913.9,2913.8,0.3]
[1644719277161,0.01011451,2913.9,2913.8,0.789]
[1644719277560,4.6061,2914.6,2913.8,0.789]
[1644719277761,0.01011437,2914.0,2913.8,0.789]
[1644719278170,0.01011437,2914.0,2913.8,1.089]
[1644719278765,4.4345,2914.6,2913.8,1.089]
[1644719279023,0.01011431,2914.0,2913.8,1.089]
[1644719280013,4.4345,2914.6,2913.8,1.089]
[1644719280216,0.01011431,2914.0,2913.8,1.089]
[1644719280614,0.01011431,2914.0,2913.8,1.26109129]
[1644719281015,0.01011431,2914.0,2913.8,1.78719032]
[1644719281215,4.4345,2914.6,2913.8,1.78719032]
[1644719281428,0.01011431,2914.0,2913.8,1.78719032]
[1644719282436,7.83535638,2914.6,2913.8,1.26109129]
[1644719282623,0.01011431,2914.0,2913.8,1.26109129]
[1644719283669,4.4345,2914.6,2913.8,1.26109129]
[1644719283866,0.01011431,2914.0,2913.8,1.26109129]
[1644719284266,0.01011431,2914.0,2913.1,1.10909051]
[1644719284474,1.06890562,2913.3,2913.1,0.17209129]
[1644719284680,0.51627387,2913.0,2912.5,0.00260693]
[1644719284870,0.51627387,2913.0,2912.3,0.00260693]
[1644719284871,1.46043641,2912.9,2912.3,0.00260693]
[1644719285172,0.51627387,2913.0,2912.3,0.01011899]
[1644719285672,0.51627387,2913.0,2912.6,1.00453014]
[1644719286270,0.00953819,2912.9,2912.6,1.00453014]
[1644719287114,0.00953819,2912.9,2912.7,0.3]
[1644719287315,0.51627387,2913.0,2912.7,0.3]
[1644719287615,0.00953824,2912.9,2912.7,0.3]
[1644719288220,0.00953824,2912.9,2912.8,1.0]
[1644719288420,0.51627387,2913.0,2912.8,1.0]
[1644719288725,0.00953819,2912.9,2912.8,1.0]
[1644719289721,0.51627387,2913.0,2912.8,1.0]
[1644719289927,0.52584572,2913.0,2912.8,1.0]
[1644719290567,1.1423,2913.7,2912.8,1.0]
[1644719290568,1.1423,2913.7,2912.9,4.689]
[1644719290766,5.3103,2914.2,2913.0,0.3]
[1644719291063,5.3103,2914.2,2913.1,0.489]
[1644719291064,1.45999914,2914.1,2913.1,0.489]
[1644719291268,1.63159914,2914.1,2913.2,0.489]
[1644719291463,1.45999914,2914.0,2913.2,0.489]
[1644719291861,1.45999914,2914.0,2913.3,0.89538254]
[1644719292262,0.00619126,2913.7,2913.3,0.89538254]
[1644719293266,0.1716,2914.1,2913.3,0.89538254]
[1644719293567,0.01011484,2913.6,2913.4,3.18595297]
[1644719293774,0.01011484,2913.6,2913.4,3.71574685]
[1644719294027,0.01011484,2913.6,2913.4,3.66536235]
[1644719294417,3.9541,2914.2,2913.5,3.1583229]
[1644719294717,1.45991392,2914.1,2913.5,3.4583229]
[1644719294916,3.2159,2914.5,2913.5,0.3]
[1644719294917,1.45991392,2914.0,2913.5,0.3]
[1644719295217,3.2159,2914.5,2913.4,0.789]
[1644719295420,1.45991881,2914.4,2913.4,0.3]
[1644719295618,2.10855827,2914.4,2913.5,0.3]
[1644719295817,2.61001881,2914.3,2913.6,0.92518278]
[1644719296016,0.01011424,2914.1,2913.6,0.92518278]
[1644719296218,1.45991881,2914.0,2913.6,0.92518278]
[1644719296522,1.63141881,2914.0,2913.6,0.92518278]
[1644719296717,1.45991881,2913.9,2913.6,0.92518278]
[1644719297123,1.47003325,2913.9,2913.6,1.52518278]
[1644719297326,0.01011444,2913.9,2913.6,1.52518278]
[1644719297975,1.1501,2914.3,2913.6,1.52518278]
[1644719298169,1.45987541,2914.2,2913.6,1.52518278]
[1644719298370,0.01011451,2913.9,2913.6,1.52518278]
[1644719299174,1.1501,2914.3,2913.6,1.52518278]
[1644719299372,0.01011451,2913.9,2913.6,1.52518278]
[1644719299972,0.01011451,2913.9,2913.7,3.12884497]
[1644719300172,0.01011451,2913.9,2913.6,1.52518278]
[1644719300373,3.2159,2914.5,2913.6,1.52518278]
[1644719300674,0.01011444,2913.9,2913.6,1.52518278]
[1644719301719,0.1715,2914.4,2913.6,1.52518278]
[1644719301915,0.01011451,2913.9,2913.6,1.52518278]
[1644719302818,0.1715,2914.4,2913.6,1.52518278]
[1644719303019,0.01011451,2913.9,2913.6,0.92518278]
[1644719303621,0.01011451,2913.9,2912.9,5.1238626]
[1644719303622,1.45997073,2913.8,2912.9,5.1238626]
[1644719303823,1.45997073,2913.8,2912.9,1.9048]
[1644719304021,1.45997073,2913.8,2912.9,0.739]
[1644719304229,0.01011505,2913.5,2912.9,1.339]
[1644719304423,0.01011505,2913.5,2913.0,3.18983516]
[1644719304623,0.01011505,2913.5,2913.3,1.01470545]
[1644719305269,1.3166,2914.3,2913.3,1.01470545]
[1644719305470,0.01011498,2913.5,2913.3,1.01470545]
[1644719306270,0.01011498,2913.5,2912.9,1.789]
[1644719306576,1.46015008,2913.4,2912.8,0.25]
[1644719306780,0.1716,2913.4,2912.6,0.01011843]
[1644719307173,0.01011498,2913.5,2912.6,0.01011843]
[1644719307371,1.46017405,2913.4,2912.6,0.01011843]
[1644719307572,1.46017405,2913.4,2912.7,1.14904722]
[1644719307879,0.01011545,2913.2,2912.7,1.74904722]
[1644719308880,7.42339508,2913.7,2912.7,1.14904722]
[1644719309122,0.00992573,2913.1,2912.7,1.14904722]
[1644719310121,0.1716,2913.6,2912.7,1.14904722]
[1644719310321,0.00992562,2913.1,2912.7,1.14904722]
[1644719311327,0.1716,2913.6,2912.7,1.14904722]
[1644719311528,0.00992562,2913.1,2912.7,1.14904722]
[1644719311725,0.00992562,2913.1,2912.7,1.74904722]
[1644719311929,0.00992562,2913.1,2912.7,1.14904722]
[1644719312123,0.00992562,2913.1,2912.7,1.74904722]
[1644719312323,0.00992562,2913.1,2912.7,1.14904722]
[1644719312522,0.1716,2913.6,2912.7,1.74904722]
[1644719312766,0.00954502,2913.1,2912.7,1.14904722]
[1644719313170,0.00954502,2913.1,2912.7,1.74904722]
[1644719313571,0.1716,2913.6,2912.7,1.74904722]
[1644719313872,0.00954502,2913.1,2912.7,1.74904722]
[1644719314069,0.00858589,2913.1,2912.7,1.74904722]
[1644719314271,0.00858589,2913.1,2912.7,2.74904722]
[1644719314675,0.00858589,2913.1,2912.8,3.64205486]
[1644719314872,2.83889654,2914.5,2912.9,1.0]
[1644719314873,1.3917,2914.3,2912.9,1.0]
[1644719315172,1.45993738,2914.2,2913.0,4.45442553]
[1644719315373,2.65613738,2914.2,2913.1,1.0]
[1644719315571,2.65613738,2914.2,2913.3,1.06617963]
[1644719315572,1.45993738,2914.1,2913.3,1.06617963]
[1644719315772,1.45993738,2914.1,2913.3,2.06617963]
[1644719316622,1.45993738,2914.1,2913.4,3.12577591]
[1644719316822,1.45993738,2914.1,2913.5,1.0]
[1644719317222,1.45993738,2914.1,2913.5,1.3]
[1644719317624,1.45993738,2914.1,2913.4,3.16056749]
[1644719317827,1.45993738,2914.1,2913.5,1.0]
[1644719318428,1.45993738,2914.1,2913.4,0.3]
[1644719318633,1.45993738,2914.1,2913.4,3.14018947]
[1644719318929,0.00956999,2913.9,2913.5,1.0]
[1644719319330,0.00956999,2913.9,2913.3,2.66617963]
[1644719319534,1.45997276,2913.8,2913.3,2.66617963]
[1644719319933,0.0097771,2913.7,2913.3,2.66617963]
[1644719320969,0.1716,2914.1,2913.3,2.66617963]
[1644719321268,0.00977723,2913.6,2913.3,2.66617963]
[1644719321869,0.00977723,2913.6,2913.3,3.19277181]
[1644719322074,0.1716,2914.1,2913.3,3.19277181]
[1644719322270,0.00955463,2913.6,2913.3,3.19277181]
[1644719322875,0.00955463,2913.6,2913.4,1.0]
[1644719323275,0.1716,2914.1,2913.3,2.19277181]
[1644719323477,0.00955457,2913.6,2913.3,2.19277181]
[1644719324417,0.1716,2914.1,2913.3,2.19277181]
[1644719324725,0.00955463,2913.6,2913.3,2.19277181]
[1644719325517,0.00955463,2913.6,2913.3,2.68177181]
[1644719325717,1.1962,2914.2,2913.3,2.68177181]
[1644719325917,1.45993398,2914.1,2913.4,1.0]
[1644719326120,1.1962,2914.2,2913.4,1.0]
[1644719326121,1.1962,2914.2,2913.6,0.85784]
[1644719326318,1.1962,2914.2,2913.7,0.489]
[1644719326718,7.3411,2914.4,2913.7,0.489]
[1644719326921,1.45980605,2914.3,2913.7,0.489]
[1644719327123,0.00956908,2914.1,2913.7,0.489]
[1644719327329,0.00956908,2914.1,2913.9,1.01140993]
[1644719327521,0.00956908,2914.1,2914.0,0.489]
[1644719327773,1.467,2913.9,2913.4,1.3]
[1644719327974,1.46000081,2913.8,2913.5,0.3]
[1644719328373,1.46957024,2913.8,2913.3,0.82659218]
[1644719328575,0.00956943,2913.8,2913.3,1.12659218]
[1644719328976,0.00956943,2913.8,2913.5,1.13632452]
[1644719329374,1.467,2913.9,2913.5,1.13632452]
[1644719329573,1.46954968,2913.8,2913.5,1.13632452]
[1644719329773,0.00956943,2913.8,2913.5,1.13632452]
[1644719329978,1.42656943,2913.9,2913.5,1.13632452]
[1644719330173,1.45997552,2913.8,2913.3,0.3]
[1644719330573,1.45997552,2913.8,2913.0,0.789]
[1644719330774,1.45997552,2913.8,2913.0,1.089]
[1644719331817,1.45997552,2913.8,2913.0,2.10949969]
[1644719333427,1.45997552,2913.8,2913.1,0.85801]
[1644719333823,1.45997552,2913.8,2913.1,1.85801]
[1644719334223,1.42656943,2913.9,2913.1,1.85801]
[1644719334423,1.43605625,2913.9,2913.5,0.98401957]
[1644719334826,1.43605625,2913.9,2913.5,1.28401957]
[1644719335275,1.42656943,2913.9,2913.5,1.28401957]
[1644719335473,1.43620455,2913.9,2913.5,1.28401957]
[1644719336473,1.42656943,2913.9,2913.5,1.28401957]
[1644719336672,1.43620455,2913.9,2913.5,1.58401957]
[1644719337274,1.43620455,2913.9,2913.2,1.00963747]
[1644719337275,4.80257224,2913.8,2913.2,1.00963747]
[1644719337477,1.45997965,2913.7,2913.2,1.00963747]
[1644719337675,0.1716,2913.6,2913.2,0.00963747]
[1644719337882,1.45997965,2913.5,2912.7,0.25]
[1644719338077,1.45997965,2913.5,2912.6,2.7314]
[1644719338078,1.45997965,2913.5,2913.2,0.00963708]
[1644719338878,1.45997965,2913.5,2913.1,0.89447203]
[1644719339124,1.45997965,2913.5,2913.2,0.0089341]
[1644719340124,1.45997965,2913.5,2913.1,0.89447203]
[1644719340430,1.45997965,2913.5,2913.2,0.0089341]
[1644719341227,1.45997965,2913.5,2912.6,0.789]
[1644719341626,1.45997965,2913.5,2913.2,0.0089341]
[1644719342426,1.45997965,2913.5,2912.9,1.18735343]
[1644719342876,1.45997965,2913.5,2913.2,0.00994854]
[1644719343674,1.45997965,2913.5,2912.9,1.18735343]
[1644719343876,1.45997965,2913.5,2913.2,0.00994854]
[1644719344879,1.45997965,2913.5,2912.9,1.18735343]
[1644719345079,1.45997965,2913.5,2913.2,0.00994854]
[1644719346082,1.45997965,2913.5,2912.6,1.789]
[1644719346289,3.70374762,2913.4,2912.5,1.3]
[1644719346520,1.45997965,2913.3,2913.2,0.009544]
[1644719346925,1.45997965,2913.5,2913.2,0.009544]
[1644719347124,3.63683372,2913.4,2913.2,0.009544]
[1644719347325,1.45997965,2913.3,2912.3,2.30298466]
[1644719347523,3.64867688,2913.2,2912.8,0.03818171]
[1644719347724,1.45997965,2913.1,2912.8,0.03818171]
[1644719348125,1.45997965,2913.0,2912.8,0.03818171]
[1644719348329,3.867612,2913.5,2912.8,0.03818171]
[1644719348625,1.46031463,2913.4,2912.3,1.07338466]
[1644719348825,3.81095071,2913.3,2912.8,0.00954452]
[1644719349026,1.46031463,2913.2,2912.8,0.00954452]
[1644719349426,1.46031463,2913.1,2912.8,0.00954452]
[1644719349627,4.17570447,2913.6,2912.3,1.07338466]
[1644719349826,1.46031695,2913.5,2912.3,1.07338466]
[1644719350126,3.92928608,2913.4,2912.8,0.00957893]
[1644719350371,1.46031695,2913.3,2912.8,0.00957893]
[1644719350570,3.58629038,2913.2,2912.8,0.00957893]
[1644719350770,1.46031695,2913.1,2912.8,0.00957893]
[1644719350975,0.1716,2913.0,2912.3,1.07338466]
[1644719351171,0.1716,2913.0,2912.9,0.00957887]
[1644719351371,0.1716,2913.5,2912.9,0.00957887]
[1644719351573,1.46030766,2913.4,2912.9,0.00957887]
[1644719351772,3.66504792,2913.3,2912.9,0.00957887]
[1644719351973,1.46030766,2913.2,2912.9,0.00957887]
[1644719352274,3.57604572,2913.1,2913.0,0.00957875]
[1644719352474,5.03635338,2913.1,2913.0,0.00957875]
[1644719352673,1.46030766,2913.1,2913.0,0.00957875]
[1644719352877,1.46030766,2913.5,2913.0,0.00957875]
[1644719353078,3.59763575,2913.4,2913.0,0.00957875]
[1644719353279,1.46030766,2913.3,2912.3,1.07338466]
[1644719353483,3.69978711,2913.2,2912.3,1.07338466]
[1644719353678,0.1716,2913.2,2913.1,0.00956912]
[1644719354027,5.5113409,2913.6,2913.1,0.00956912]
[1644719354221,1.46029317,2913.5,2913.1,0.00956912]
[1644719354418,3.70912552,2913.4,2913.1,0.00956912]
[1644719354619,1.46029317,2913.3,2912.3,1.07338466]
[1644719354820,0.1716,2913.2,2912.7,0.03828198]
[1644719355219,0.1716,2913.5,2912.7,0.03828198]
[1644719355421,1.46027436,2913.4,2912.7,0.03828198]
[1644719355620,3.52050019,2913.3,2912.7,0.03828198]
[1644719355821,1.46027436,2913.2,2912.3,1.07338466]
[1644719356027,3.83413491,2913.6,2912.9,0.00956935]
[1644719356221,1.46026406,2913.5,2912.9,0.00956935]
[1644719356422,3.4599615,2913.4,2912.9,0.00956935]
[1644719356622,1.46026406,2913.3,2912.9,0.00956935]
[1644719357024,1.46026406,2913.5,2912.4,2.45682153]
[1644719357225,12.3147,2913.7,2912.5,0.789]
[1644719357423,1.4600927,2913.6,2913.0,0.00957709]
[1644719357768,12.3147,2913.7,2913.0,0.00957709]
[1644719358274,8.15482766,2913.7,2913.0,0.00957709]
[1644719358679,1.46006324,2913.6,2913.2,0.00957685]
[1644719358874,8.15482766,2913.7,2913.2,0.00957685]
[1644719359175,1.46005155,2913.6,2913.2,0.00957685]
[1644719359374,1.46005155,2913.6,2912.8,2.89596706]
[1644719359773,1.46005155,2913.6,2913.2,0.0095692]
[1644719360174,8.15482766,2913.7,2913.2,0.0095692]
[1644719360577,8.15482766,2913.7,2912.8,2.89596706]
[1644719360974,8.15482766,2913.7,2913.2,0.0095692]
[1644719361817,8.15482766,2913.7,2912.8,1.89596706]
[1644719362017,8.15482766,2913.7,2913.2,0.0095692]
[1644719362417,1.46006987,2913.6,2913.2,0.0095692]
[1644719363022,1.46006987,2913.6,2912.8,0.789]
[1644719363424,1.46006987,2913.6,2913.2,0.0095691]
[1644719364231,1.46006987,2913.6,2912.8,0.789]
[1644719364425,1.46006987,2913.6,2912.8,1.68138457]
[1644719364628,1.46006987,2913.6,2913.2,0.00956961]
[1644719365470,1.46006987,2913.6,2912.8,1.68138457]
[1644719365872,1.46006987,2913.6,2913.2,0.00956961]
[1644719366772,1.46006987,2913.6,2912.8,0.789]
[1644719366972,1.46006987,2913.6,2913.2,0.00956961]
[1644719367173,1.63166987,2913.6,2913.2,0.00956961]
[1644719367372,1.46006987,2913.5,2913.2,0.00956961]
[1644719367977,1.46006987,2913.5,2912.8,0.82728392]
[1644719367978,1.46006987,2913.5,2912.8,0.789]
[1644719368177,1.46006987,2913.5,2913.2,0.00953431]
[1644719368578,0.1716,2913.6,2913.2,0.00953431]
[1644719368781,8.15482766,2913.7,2913.2,0.00953431]
[1644719369024,1.46004587,2913.6,2912.8,0.3]
[1644719369224,1.46004587,2913.6,2912.7,0.3]
[1644719369423,1.46004587,2913.6,2913.2,0.00953431]
[1644719370226,1.46004587,2913.6,2912.5,3.25389222]
[1644719370625,1.46004587,2913.6,2913.2,0.00953431]
[1644719370826,0.1716,2913.5,2913.2,0.00953431]
[1644719371027,8.15482766,2913.7,2913.2,0.00953431]
[1644719371228,1.46008039,2913.6,2913.2,0.00953431]
[1644719371426,1.46008039,2913.6,2912.6,0.00258197]
[1644719371827,1.46008039,2913.6,2913.2,0.00957087]
[1644719372627,1.46008039,2913.6,2912.6,0.00258197]
[1644719372874,1.46008039,2913.6,2913.2,0.00957077]
[1644719373975,1.46008039,2913.6,2912.6,0.00258197]
[1644719374180,1.63168039,2913.6,2913.2,0.00957077]
[1644719374376,8.15482766,2913.7,2913.2,0.00957077]
[1644719374577,1.46007431,2913.6,2913.2,0.00957077]
[1644719375177,1.46007431,2913.6,2912.6,0.00258197]
[1644719375378,1.46007431,2913.6,2913.2,0.0095695]
[1644719376180,1.46007431,2913.6,2912.7,0.1716]
[1644719376380,1.46007431,2913.6,2913.3,0.02140521]
[1644719377823,8.15482766,2913.7,2913.3,0.02140521]
[1644719379828,8.15482766,2913.7,2913.3,0.51040521]
[1644719380029,4.45502766,2913.7,2913.3,0.51040521]
[1644719380273,3.2632,2913.7,2913.3,0.51040521]
[1644719380470,0.00360637,2913.8,2913.3,0.51040521]
[1644719380669,0.00360637,2913.8,2913.3,0.489]
[1644719380873,1.46359818,2913.8,2913.3,0.489]
[1644719381072,1.45999181,2913.7,2913.3,0.489]
[1644719381271,0.00360637,2913.8,2913.3,0.489]
[1644719381674,1.46360397,2913.8,2913.3,0.489]
[1644719382673,1.46260015,2913.8,2913.3,0.489]
[1644719383279,0.00260255,2913.8,2913.3,0.489]
[1644719383680,1.46258087,2913.8,2913.3,0.489]
[1644719385728,1.46258087,2913.8,2913.5,0.01869022]
[1644719385930,1.45997832,2913.8,2913.5,0.01869022]
[1644719387340,1.63157832,2913.8,2913.5,0.01869022]
[1644719387533,1.45997832,2913.7,2913.5,0.01869022]
[1644719387988,0.1716,2913.8,2913.5,0.01869022]
[1644719388783,1.43613701,2913.9,2913.5,0.01869022]
[1644719388983,1.45997941,2913.8,2913.5,0.01869022]
[1644719390787,1.63157941,2913.8,2913.5,0.01869022]
[1644719390988,1.63157941,2913.8,2913.2,0.0095701]
[1644719390989,1.45997941,2913.7,2913.2,0.0095701]
[1644719391289,1.46258196,2913.7,2913.2,0.0095701]
[1644719391535,0.00260255,2913.8,2913.2,0.0095701]
[1644719392028,1.46261565,2913.8,2913.2,0.00956978]
[1644719392834,1.63421565,2913.8,2913.2,0.00956978]
[1644719393034,0.17420255,2913.8,2913.0,0.81178075]
[1644719393333,0.17420255,2913.8,2913.2,0.00956977]
[1644719393933,1.46001757,2913.7,2913.2,0.00956977]
[1644719394335,0.00260255,2913.8,2913.0,0.81178075]
[1644719394535,1.46263206,2913.8,2913.2,0.00956967]
[1644719395370,1.46263206,2913.8,2913.0,0.81178075]
[1644719395770,1.46263206,2913.8,2913.2,0.00956977]
[1644719395970,1.46263206,2913.8,2913.3,0.01873728]
[1644719400528,3.27845268,2913.7,2913.3,0.01873728]
[1644719400723,1.46002951,2913.6,2913.3,0.01873728]
[1644719401625,1.46002951,2913.5,2913.3,0.01873728]
[1644719401825,0.00260255,2913.8,2913.3,0.50773728]
[1644719402024,0.00260255,2913.8,2913.3,0.80773728]
[1644719402423,1.46254269,2913.8,2913.3,1.10773728]
[1644719402878,1.46254269,2913.8,2913.3,2.20096498]
[1644719403289,1.46113824,2913.8,2913.3,2.20096498]
[1644719405879,0.0011981,2913.8,2913.3,2.20096498]
[1644719406079,0.0011981,2913.8,2913.3,0.80773728]
[1644719406282,0.0011981,2913.8,2913.3,0.50773728]
[1644719406520,1.46113486,2913.8,2913.3,0.50773728]
[1644719407520,1.46113486,2913.8,2913.5,1.14624916]
[1644719407720,1.45993676,2913.8,2913.5,1.14624916]
[1644719408330,1.45993676,2913.8,2913.5,1.44624916]
[1644719409131,1.45993676,2913.8,2913.6,0.04752444]
[1644719409332,1.4361372,2913.9,2913.6,1.44187888]
[1644719409834,1.42656943,2913.9,2913.6,2.44187888]
[1644719410029,1.42656943,2913.9,2913.6,1.44187888]
[1644719410276,1.43613741,2913.9,2913.6,2.44187888]
[1644719410474,1.43613741,2913.9,2913.6,4.85852162]
[1644719410675,1.43613741,2913.9,2913.6,5.13962389]
[1644719411078,1.42656943,2913.9,2913.6,5.13962389]
[1644719411277,1.4361374,2913.9,2913.6,5.13962389]
[1644719411881,1.4361374,2913.9,2913.6,2.44187888]
[1644719412081,1.4361374,2913.9,2913.7,3.288242]
[1644719412282,1.42656943,2913.9,2913.8,1.489]
[1644719412482,1.4361374,2913.9,2913.8,5.1475888]
[1644719413488,1.42656943,2913.9,2913.8,5.1475888]
[1644719414140,1.42656943,2913.9,2913.8,1.789]
[1644719414339,1.42656943,2913.9,2913.8,0.83652444]
[1644719414539,1.42656943,2913.9,2913.8,4.02248549]
[1644719414739,1.42656943,2913.9,2913.8,0.88404888]
[1644719414939,1.42656943,2913.9,2913.8,1.88404888]
[1644719415340,1.42656943,2913.9,2913.8,0.88404888]
[1644719415941,1.42656943,2913.9,2913.8,4.58430078]
[1644719416340,1.42656943,2913.9,2913.8,2.3908011]
[1644719416742,1.42656943,2913.9,2913.8,1.0908011]
[1644719416941,1.42656943,2913.9,2913.8,2.3908011]
[1644719417342,1.42656943,2913.9,2913.8,1.0908011]
[1644719417543,1.42656943,2913.9,2913.8,2.0908011]